Cogmind - Beta 15 @@@ ROGUE MODE // 2025.07.31 @ 12:44:18 Player: Inverisimilidude Result: Smashed by cave-in Performance ------------- Evolutions (0) 0 Regions Visited (4) 800 Robots Destroyed (12) 60 Value Destroyed (321) 321 Prototype IDs (19) 380 Alien Tech Used (0) 0 Bonus (300) 300 TOTAL SCORE: 1861 Bonus ------- Registered with UFD 300 Cogmind --------- Core Integrity 0/250 Matter 43/300 Energy 247/250 System Corruption 5% Temperature Cool (1) Movement Walking (130) Location -9/Scraptown Parts ------- > --- POWER (1) -------- Ion Engine > --- PROPULSION (2) --- Aluminum Leg Makeshift Leg > --- UTILITY (2) ------ Large Storage Unit > --- WEAPON (2) ------- Companion Sword > --- INVENTORY (15) --- Aluminum Leg Aluminum Leg Aluminum Leg Aluminum Leg Wheel Improved Heat Sink Large Battery (200) Hammer DRS Beacon (Ready) Peak State ------------ > --- POWER ------------ Ion Engine > --- PROPULSION ------- Wheel Wheel > --- UTILITY ---------- Large Storage Unit A0-MCA's Component Scanner > --- WEAPON ----------- Grenade Launcher Companion Sword > --- INVENTORY -------- Aluminum Leg Aluminum Leg Aluminum Leg Aluminum Leg Aluminum Leg Makeshift Leg Makeshift Leg Improved Heat Sink Large Battery Triangulator Hammer Vortex Trap DRS Beacon [Rating: 23] Favorites ----------- Power Ion Engine Engine Ion Engine Propulsion Wheel Leg Makeshift Leg Wheel Wheel Utility Large Storage Unit Device Seismic Detector Storage Large Storage Unit Processor A0-MCA's Component Scanner Weapon Light Assault Rifle Energy Gun Particle Gun Ballistic Gun Light Assault Rifle Launcher Grenade Launcher Impact Weapon Hammer Slashing Weapon Companion Sword Build | -11 -10 -10 -9 -9 ------- Run | Yrd Mat Sub Rec Scr Slots Evolved . | . . . . . Power . | . . . . . Propulsion . | . . . . . Utility . | . . . . . Weapon . | . . . . . Parts Attached 19 | 7 2 2 1 7 Power 2 | 1 1 . . . Engine 2 | 1 1 . . . Core . | . . . . . Reactor . | . . . . . Propulsion 6 | 2 . . . 4 Treads . | . . . . . Leg 3 | . . . . 3 Wheel 3 | 2 . . . 1 Hover . | . . . . . Flight . | . . . . . Utility 5 | 2 1 . . 2 Device 2 | 1 . . . 1 Storage 2 | 1 1 . . . Processor 1 | . . . . 1 Hackware . | . . . . . Protection . | . . . . . Artifact . | . . . . . Weapon 6 | 2 . 2 1 1 Energy Gun 2 | 1 . . 1 . Energy Cannon . | . . . . . Ballistic Gun 1 | 1 . . . . Ballistic Cannon . | . . . . . Launcher 1 | . . 1 . . Special Weapon . | . . . . . Impact Weapon 1 | . . 1 . . Slashing Weapon 1 | . . . . 1 Piercing Weapon . | . . . . . Special Melee Weapon . | . . . . . Unidentified Prototypes 1 | . . . . 1 Parts Lost 5 | . 1 . . 4 Power 1 | . 1 . . . Propulsion 2 | . . . . 2 Utility 1 | . . . . 1 Weapon 1 | . . . . 1 Highest Loss Streak 2 | . 1 . . 2 To Critical Strikes . | . . . . . Average Backups 11 | 2 7 12 14 12 Power . | . . . . . Propulsion 6 | 1 4 7 8 7 Utility 1 | . . 1 2 2 Weapon 3 | . 2 4 4 2 Tool/Special . | . . . . . Unused Backups 7 | . . . . 7 Power . | . . . . . Propulsion 4 | . . . . 4 Utility 2 | . . . . 2 Weapon 1 | . . . . 1 Tool/Special . | . . . . . Average Slot Usage (%) 94 | . 100 100 100 90 Engine 14 | . 14 14 14 14 Leg 1 | . . . . 2 Wheel 25 | . 28 28 28 23 Device 11 | . 14 14 14 9 Storage 14 | . 14 14 14 14 Processor 1 | . . . . 2 Energy Gun 8 | . 14 3 14 7 Ballistic Gun 10 | . 14 14 14 7 Launcher 2 | . . 9 . . Slashing Weapon 3 | . . . . 6 Peak Build Rating 23 | 7 8 9 10 23 Average Rating 11 | 4 7 8 10 13 On Entrance 6 | . 7 8 9 10 Naked Turns . | . . . . . Heaviest Build 32 | 12 29 30 30 32 Greatest Support 40 | 20 20 20 20 40 Greatest Overweight (x) 3 | . 1 1 1 3 Average Overweight (x) . | . . 1 1 1 Largest Inventory Capacity 15 | 8 15 15 15 15 Average Capacity 14 | 7 14 15 15 15 Most Carried 15 | 5 11 14 14 15 Average Carried 12 | 2 7 12 14 13 Final Capacity 15 | 8 15 15 15 15 Final Carried 14 | 5 11 14 14 9 Class Distribution -------------------- 100% | Mutant Dominant Class ---------------- Mutant | -10/Materials Mutant | -10/Subcaves Mutant | -9/Recycling Mutant | -9/Scraptown Resources | -11 -10 -10 -9 -9 ----------- Run | Yrd Mat Sub Rec Scr Matter Collected 414 | 256 55 64 . 39 Remotely . | . . . . . Salvage Created 380 | 42 270 37 . 31 Parts 24 | 4 14 1 . 5 Haulers Intercepted . | . . . . . Recyclers Shooed . | . . . . . Parts Field Recycled . | . . . . . Retrieved Matter . | . . . . . Parts Self-Destructed 10 | . . 7 . 3 Prevented . | . . . . . Kills | -11 -10 -10 -9 -9 ------- Run | Yrd Mat Sub Rec Scr Combat Hostiles Destroyed 10 | . 8 2 . . Guns 8 | . 8 . . . AOE 2 | . . 2 . . Classes Destroyed 3 | 1 2 . . . Tunneler 2 | 2 . . . . Swarmer 3 | . 3 . . . Grunt 7 | . 5 2 . . Best Kill Streak 6 | 2 6 2 . . Combat Bots Only 6 | . 6 2 . . Max Kills in Single Turn 1 | 1 1 1 . . Gunslinging . | . . . . . Exploded 1 | . . 1 . . Melee . | . . . . . Uniques/NPCs Destroyed . | . . . . . Combat | -11 -10 -10 -9 -9 -------- Run | Yrd Mat Sub Rec Scr Hostile Shots Fired 37 | . 30 7 . . Missed 13 | . 10 3 . . Hits 24 | . 20 4 . . Projectile 24 | . 20 4 . . Critical Strikes 1 | . 1 . . . Damage Taken 896 | . 229 53 . 614 Core 279 | . 81 14 . 184 Absorbed by Shields . | . . . . . Core Remaining (%) 100 | 100 . . . . Volleys Fired 56 | 7 24 5 . 20 Largest 2 | 2 2 2 . 1 Hottest 70 | 70 70 50 . 30 Shots Fired 91 | 14 47 10 . 20 Gun 66 | 14 47 5 . . Cannon . | . . . . . Launcher 25 | . . 5 . 20 Special . | . . . . . Kinetic 36 | 7 24 5 . . Thermal 30 | 7 23 . . . Explosive 25 | . . 5 . 20 Electromagnetic . | . . . . . Robot Hit Streak 10 | 7 10 8 . . Robot Miss Streak 3 | 3 3 2 . . Penetration Max . | . . . . . Secondary Targets 2 | . 2 . . . Max Gunslinging Chain 1 | . 1 . . . Shots Hit Robots 44 | 8 30 6 . . Core Hits 33 | 2 15 6 . 10 Critical Kills . | . . . . . Critical Parts Destroyed . | . . . . . Critical Strikes 4 | 1 3 . . . Burn 4 | 1 3 . . . Melee Attacks 54 | . . 2 . 52 Impact 2 | . . 2 . . Slashing 52 | . . . . 52 Piercing . | . . . . . Sneak Attacks . | . . . . . Combat Hostiles . | . . . . . Follow-up Attacks . | . . . . . Damage Inflicted 774 | 88 313 172 . 201 Guns 417 | 88 313 16 . . Cannons . | . . . . . Explosions 357 | . . 156 . 201 Melee . | . . . . . Ramming . | . . . . . Kinetic 130 | 25 89 16 . . Thermal 287 | 63 224 . . . Explosive 357 | . . 156 . 201 Electromagnetic . | . . . . . Impact . | . . . . . Slashing . | . . . . . Piercing . | . . . . . Highest Corruption 5 | . . . . 5 Average Corruption 4 | . . . . 4 Corruption Purged . | . . . . . Corruption Blocked . | . . . . . Effects 4 | . . . . 4 Message Errors 1 | . . . . 1 Energy Discharges 3 | . . . . 3 Overload Shots . | . . . . . Overflow Damage 9 | . . . . 9 Projectiles . | . . . . . Explosions 9 | . . . . 9 Melee . | . . . . . Knockbacks . | . . . . . Impact . | . . . . . Kinetic . | . . . . . Secondary . | . . . . . Self-Inflicted Damage 82 | . . . . 82 Shots 4 | . . . . 4 Rammed . | . . . . . Targets Rammed . | . . . . . Kicked . | . . . . . Crushed . | . . . . . Highest Temperature 186 | 90 186 . . . Average Temperature 75 | 41 84 . . . Received Heat Transfer 156 | . 123 33 . . Siege Activations . | . . . . . Martial Activations . | . . . . . Shielding Activations . | . . . . . Robots Disrupted . | . . . . . Combat Hostiles . | . . . . . Robots Corrupted . | . . . . . Combat Hostiles . | . . . . . Parts Fried . | . . . . . Impact Corruptions . | . . . . . Robots Melted . | . . . . . Combat Hostiles . | . . . . . Parts Melted 2 | . 2 . . . Heat Transferred 1147 | 259 888 . . . Parts Sabotaged . | . . . . . Parts Stolen . | . . . . . Parts Stripped . | . . . . . Power Chain Reactions . | . . . . . Alert | -11 -10 -10 -9 -9 ------- Run | Yrd Mat Sub Rec Scr Maximum Alert Level . | . . . . . Low Security (%) 100 | 100 100 . 100 . Level 1 . | . . . . . Level 2 . | . . . . . Level 3 . | . . . . . Level 4 . | . . . . . Level 5 . | . . . . . High Security . | . . . . . Max Security . | . . . . . Peak Influence 150 | 10 150 . 7 . Initial 7 | . . . 7 . Average 35 | 1 53 . 1 . Influence Increases 310 | 10 215 65 5 15 Destroy 0b10 Robot/C 200 | . 160 40 . . Destroy 0b10 Robot/NC 25 | 10 . . . 15 Destroy Leader 50 | . 40 10 . . Successful Hack 5 | . . . 5 . Lose Combat Pursuer 30 | . 15 15 . . Influence Decreases 310 | 10 157 108 20 15 Entered New Map 37 | . . 29 8 . Time Decay 253 | 10 147 79 12 5 Lost Part 20 | . 10 . . 10 Squads Dispatched 1 | . 1 . . . Investigation . | . . . . . Extermination . | . . . . . Reinforcement 1 | . 1 . . . Assault . | . . . . . Garrison . | . . . . . Intercept . | . . . . . Searches Triggered . | . . . . . Construction Impeded . | . . . . . Haulers Reinforced . | . . . . . Active Scanning Responses . | . . . . . Cargo Convoy Interrupts . | . . . . . Stealth | -11 -10 -10 -9 -9 --------- Run | Yrd Mat Sub Rec Scr Distress Signals 2 | . 2 . . . Communications Jammed . | . . . . . Distress Signals . | . . . . . Times Spotted 20 | . 13 7 . . Peak Tracking Total 7 | . 7 5 . 7 Tactical Retreats 2 | . 1 1 . . Traps | -11 -10 -10 -9 -9 ------- Run | Yrd Mat Sub Rec Scr Traps Triggered . | . . . . . Indirectly . | . . . . . Trap Hack Attempts . | . . . . . Triggered . | . . . . . Disarmed . | . . . . . Reprogrammed . | . . . . . Reused . | . . . . . Traps Extracted . | . . . . . Installed 2 | . . . . 2 Triggered . | . . . . . Most Traps Carried 2 | . . . . 2 Machines | -11 -10 -10 -9 -9 ---------- Run | Yrd Mat Sub Rec Scr Machines Disabled . | . . . . . Max in Single Turn . | . . . . . Machines Repaired . | . . . . . Machines Dismantled . | . . . . . Machines Sabotaged . | . . . . . Overloaded Fab Kills . | . . . . . Hacking | -11 -10 -10 -9 -9 --------- Run | Yrd Mat Sub Rec Scr Machines Accessed 7 | . 1 1 2 3 Terminals 3 | . 1 . 2 . Fabricators . | . . . . . Repair Stations . | . . . . . Recycling Units . | . . . . . Scanalyzers . | . . . . . Garrison Access . | . . . . . Total Hacks 20 | . 4 4 5 7 Successful 12 | . . 4 1 7 Failed 8 | . 4 . 4 . Catastrophic 2 | . 2 . . . Database Lockouts . | . . . . . Manual 6 | . 4 . . 2 Terminals 9 | . 4 . 5 . Fabricators . | . . . . . Repair Stations . | . . . . . Recycling Units . | . . . . . Scanalyzers . | . . . . . Garrison Access . | . . . . . Terminal Hacks 12 | . . 4 1 7 Record 9 | . . 4 . 5 Open Door 1 | . . . . 1 Zone Layout 1 | . . . 1 . Proto ID Catalog 1 | . . . . 1 Fabricator Hacks . | . . . . . Repair Station Hacks . | . . . . . Recycling Unit Hacks . | . . . . . Scanalyzer . | . . . . . Garrison Access Hacks . | . . . . . Unauthorized Hacks . | . . . . . Terminals . | . . . . . Fabricators . | . . . . . Repair Stations . | . . . . . Recycling Units . | . . . . . Scanalyzers . | . . . . . Garrison Access . | . . . . . Data Cores Recovered . | . . . . . Used . | . . . . . Hacking Detections 2 | . 1 . 1 . Full Trace Events 2 | . 1 . 1 . Feedback Events . | . . . . . Feedback Blocked . | . . . . . Robot Schematics Acquired . | . . . . . Robots Built . | . . . . . Authchips . | . . . . . Time . | . . . . . Total Robot Build Rating . | . . . . . Part Schematics Acquired . | . . . . . Parts Built . | . . . . . Authchips . | . . . . . Time . | . . . . . Total Part Build Rating . | . . . . . Parts Repaired . | . . . . . Time . | . . . . . Parts Recycled . | . . . . . Recycled Matter . | . . . . . Retrieved Matter . | . . . . . Retrieved Components . | . . . . . Parts Scanalyzed . | . . . . . Part Schematics Acquired . | . . . . . Parts Damaged . | . . . . . Bothacking | -11 -10 -10 -9 -9 ------------ Run | Yrd Mat Sub Rec Scr Used RIF Installer . | . . . . . Robots Hacked . | . . . . . Non-combat . | . . . . . Combat . | . . . . . Robot Hacks Applied . | . . . . . Relay Couplers Released . | . . . . . Fabnet Peak Effective % . | . . . . . Robots Rewired . | . . . . . Allies Hacked . | . . . . . Hacks Repelled . | . . . . . Allies | -11 -10 -10 -9 -9 -------- Run | Yrd Mat Sub Rec Scr Total Allies . | . . . . . Largest Group . | . . . . . Highest-Rated Group . | . . . . . Highest-Rated Ally . | . . . . . Total Orders . | . . . . . Ally Attacks . | . . . . . Total Damage . | . . . . . Kills . | . . . . . Allies Corrupted . | . . . . . Allies Melted . | . . . . . Intel | -11 -10 -10 -9 -9 ------- Run | Yrd Mat Sub Rec Scr Active Infowar (turns) 2370 | 2 460 512 168 1228 Seismic 2133 | 2 460 512 168 991 Triangulation 237 | . . . . 237 Robot Analysis Total . | . . . . . Derelict Logs Recovered . | . . . . . Drone Launches . | . . . . . Drone Recoveries . | . . . . . Exploration | -11 -10 -10 -9 -9 ------------- Run | Yrd Mat Sub Rec Scr Turns Passed 2957 | 81 460 512 168 1736 Spaces Moved 2525 | 59 220 513 176 1557 Core 4 | 4 . . . . Treads . | . . . . . Legs 61 | . . . . 61 Wheels 2460 | 55 220 513 176 1496 Hover . | . . . . . Flight . | . . . . . Fastest Speed 50 | 50 80 95 95 95 Average Speed 97 | 77 94 95 95 99 Slowest Speed 210 | 80 95 95 95 210 Overloaded Moves . | . . . . . Propulsion Burnouts . | . . . . . Robots Hopped . | . . . . . Potential Cave-ins 73 | . . . . 73 Cave-ins Triggered 9 | . . . . 9 Exploration Rate (%) 41 | 3 35 33 46 90 Regions Visited 4 Branch Regions 3 Pre-discovered Areas . | . . . . . Known Exits Taken 1 | . . 1 . . Unknown Exits Taken 3 | 1 1 . 1 . Scrap Searched 3 | . . . . 3 Spaces Dug 62 | . . 1 . 61 Terrain Destroyed 231 | . . 31 . 200 Melee 53 | . . 1 . 52 Projectile . | . . . . . AOE 178 | . . 30 . 148 Terrain Rammed . | . . . . . Walls Destroyed . | . . . . . Machines Disabled . | . . . . . Actions | -11 -10 -10 -9 -9 --------- Run | Yrd Mat Sub Rec Scr Total 2858 | 78 429 524 176 1651 Wait 176 | . 176 . . . Move 2517 | 58 219 512 175 1553 Hop . | . . . . . Pick Up 19 | 6 7 3 . 3 Fast Attach 9 | 6 . . . 3 Attach 5 | 1 1 . . 3 Detach 1 | . . . . 1 Swap 7 | . 1 2 1 3 Drop 9 | . 1 . . 8 Fire 56 | 7 24 5 . 20 Melee 54 | . . 2 . 52 Ram . | . . . . . Kick . | . . . . . Crush . | . . . . . Escape Stasis 3 | . . . . 3 Rewire . | . . . . . Trap 2 | . . . . 2 Miscellaneous . | . . . . . Route ------- -11/Scrapyard -10/Materials (discovered 2 exits: [*Mat] / *Sub) -10/Subcaves (discovered 3 exits: *Mat x2 / *Rec) -9/Recycling (discovered 2 exits: [*Fac] / *Scr) -9/Scraptown (discovered 1 exit: [*Fac]) History --------- Turn | Location | Event 2 | -11/Scrapyard | Met Revision 17 24 | -11/Scrapyard | Discovered new exit (range 15) 82 | -11/Scrapyard | Entered Materials 313 | -10/Materials | Build established: Mutant 483 | -10/Materials | Discovered new exit (range 6) 516 | -10/Materials | Discovered new exit (range 15) 542 | -10/Materials | Entered Subcaves 543 | -10/Subcaves | Approached by a straggling Scientist 705 | -10/Subcaves | A swath of the cavern ceiling suddenly collapsed 838 | -10/Subcaves | Discovered new exit (range 7) 842 | -10/Subcaves | Visited Clippyterm 845 | -10/Subcaves | Identified exit to Materials 845 | -10/Subcaves | Identified exit to Recycling 1054 | -10/Subcaves | Entered Recycling 1176 | -9/Recycling | Discovered new exit (range 16) 1197 | -9/Recycling | Scanned before Scraplab entrance 1211 | -9/Recycling | Entered Scraplab 1219 | -9/Recycling | Discovered new exit (range 4) 1222 | -9/Recycling | Entered Scraptown 1356 | -9/Scraptown | Visited UFD Registry 1356 | -9/Scraptown | Registered with UFD as "Pulsetalker" 1375 | -9/Scraptown | Visited Fellowship of the Rings 1401 | -9/Scraptown | Visited Comm Corps 1516 | -9/Scraptown | Discovered new exit (range 11) 1751 | -9/Scraptown | Visited Assassins FH 1791 | -9/Scraptown | Visited TADAMA 1851 | -9/Scraptown | Visited Bundlers 1888 | -9/Scraptown | Visited Awakened 1911 | -9/Scraptown | Visited Cave Peace 2008 | -9/Scraptown | Visited Science Testing Area 2028 | -9/Scraptown | Visited Science Guys 2066 | -9/Scraptown | Received an X-ray algorithm 2072 | -9/Scraptown | Visited Sword Containment 2076 | -9/Scraptown | Ran an X-ray algorithm 2098 | -9/Scraptown | Ran an X-ray algorithm 2165 | -9/Scraptown | Visited Scrap Suit Storage 2180 | -9/Scraptown | Visited Scrapoid Pod Storage 2207 | -9/Scraptown | Visited Infowarlord's Domain 2232 | -9/Scraptown | Visited Derelict Rescue Squad 2244 | -9/Scraptown | Found DRS Beacon 2362 | -9/Scraptown | Visited A0-MCA Data Center 2367 | -9/Scraptown | Given a C+ rating by A0-MCA 2371 | -9/Scraptown | Found A0-MCA's Component Scanner 2389 | -9/Scraptown | Visited Observation Area 2430 | -9/Scraptown | Visited Abandonware Association 2442 | -9/Scraptown | Learned abandonware demo "TRNCOAT.EXE" 2442 | -9/Scraptown | Learned abandonware demo "POISON.EXE" 2614 | -9/Scraptown | Warned about trapping Scraptown 2615 | -9/Scraptown | Attacked by Scraptown defenders 2625 | -9/Scraptown | Crushed by falling debris 2779 | -9/Scraptown | Crushed by falling debris 2779 | -9/Scraptown | Core integrity fell below 50% 2781 | -9/Scraptown | Crushed by falling debris 2785 | -9/Scraptown | Crushed by falling debris 2785 | -9/Scraptown | Core integrity fell below 20% 2878 | -9/Scraptown | Crushed by falling debris 2929 | -9/Scraptown | Crushed by falling debris 2930 | -9/Scraptown | Crushed by falling debris 2940 | -9/Scraptown | Crushed by falling debris 2958 | -9/Scraptown | Crushed by falling debris 2958 | -9/Scraptown | Smashed by cave-in Last Messages --------------- 02808_ The unstable cave ceiling collapses. 02822_ System corrupted: Energy discharge (-87). 02839_ 1BU&&T9LIK5 >=S2QW3HPR=VGOP JP Y,,KF8Y Companion Sword: "Maybe you need a rocket booster companion instead of me." 02878_ The unstable cave ceiling collapses. 02878_ Crushed by falling debris. Companion Sword: "Stealth mode, engage." 02891_ The unstable cave ceiling collapses. 02916_ System corrupted: Energy discharge (-77). 02929_ The unstable cave ceiling collapses. 02929_ Crushed by falling debris. 02930_ The unstable cave ceiling collapses. 02930_ Crushed by falling debris. 02932_ Dropped Vortex Trap. 02933_ Installed Vortex Trap. 02940_ The unstable cave ceiling collapses. 02940_ Crushed by falling debris. 02958_ The unstable cave ceiling collapses. 02958_ Crushed by falling debris. Map ----- +----------------------------------------------------+ | """"""""#?????????????????? | | " " " "#?????????????????? | | "#?????????????????? | | &"#?????????????????? | | "#?????????????????? | | ""#?????????????????? | | " " " "#?????????????????? | | """"""""#?????????????????? | | ##########?????????????????? | | ???????????????????????????? | | ????????????????####???????? | | ????????????????# #####???? | | ????????????????### ##??? | | ????????????########## ##?? | | ??????####### ##??### ##? | | ?????### ## ####### #? | | ######"# ## # # ## #? | | ^ # ## # # # ## #? | | ## # ## # # ## | | # ### ### # # | | # # # # # # # | | # ##### # ###### | | ########## # ## ##?##? | | #??????#### # # #### #? | | #?###### # ## ## ##? | | #?# # #### ## #### ###@#? | | #?## # #### #?########? | | #?# ####### #####?## ##???? | | #?###?## # #####???#^##????? | | #??????###### #????####????? | | ????????#######?????###????? | | ???????????????????????????? | | ???????????????????????????? | | ???????????????????????????? | | ???????????????????????????? | | ???????????????????????????? | | ???????????????????????????? | | ???????????????????????????? | | ???????????????????????????? | | ???????????????????????????? | | ???????????????????????????? | | ???????????????????????????? | | ???????????????????????????? | | ???????????????????????????? | | ???????????????????????????? | | ???????????????????????????? | | | | | | | | | +----------------------------------------------------+ Best States ------------- Heat Dissipation 25 Energy Generation 10 Energy Capacity 250 Matter Stores 300 Matter Capacity 300 Sight Range 16 Terrain Scan Density 10 Evasion (%) 44 Item Schematics ----------------- None Robot Schematics ------------------ None Fabricated ------------ Nothing Repaired ---------- Nothing Alien Tech Used ----------------- None Achievements -------------- None Challenges ------------ None Game ------ Seed MetafiberIonDerivative Manual? 0 Play Time 00:25:19 Cumulative 77.2 hours Start 2025.07.31 @ 12:08:33 End 2025.07.31 @ 12:44:18 Sessions 1 Manual Loads 0 Difficulty Rogue Special Mode None Game No. 101 Rogue 101 Adventurer 0 Explorer 0 Win Type - Total 0 Types 0/0/0/0/0/0/0/0/0/0 Lore% 57 Gallery% 39 Achievement% 38 Wizard Run 0 Options --------- Layout 1 ASCII 0 Keyboard 0 Movement Arrows Keybinds 0 Fullscreen 1 Font 24/Smallcaps Map View 50x35 Zoom Use 0% Tactical HUD 1 Map Filters NONE Filters NONE Steam 1 RUN: a9263331-98d3-484f-ba3a-e6753cc987a7